Workbook

Sheet помесячно 2012 (hidden)
A1: 2014 год
A2: Месяц | B2: Прибыль | C2: НДФЛ | D2: ЕНВД | E2: ЕСХН | F2: Госпошлина | G2: Отмененные налоги и сборы | H2: Аренда имущ. | I2: Аренда земли | J2: Экология | K2: Продажа земли | L2: Продажа имущества | M2: Платные услуги | N2: Штрафы | O2: Прочие неналоговые | P2: Прибыль МУП | Q2: Прочие(имущество) | R2: Проценты по бюджетн. Кредитам | S2: УСН | T2: Патент | U2: Имущество юр.л. | V2: ИТОГО
A3: 1 квартал | B3: =B4+B5+B6 -> 1698.919 | C3: =C4+C5+C6 -> 86187.48683 | D3: 4029.72961 | E3: 9011.42915 | F3: 2379.57555 | G3: 0.26001 | H3: 85.66188 | I3: 10713.62433 | J3: 880.65661 | K3: 720.12877 | L3: 0 | M3: 56.66523 | N3: 462.8688 | O3: 34.0075 | P3: =P4+P5+P6 -> 0 | Q3: 246.82755 | R3: 0 | S3: 10575.19015 | T3: 6233.67589 | U3: 890.98747 | V3: =SUM(B3:U3) -> 134207.6943
A4: январь | B4: 528.22536 | C4: 17674.48365 | D4: 3308.6158 | E4: 440.75208 | F4: 650.57885 | G4: 0 | H4: 27.47 | I4: 6858.4245 | J4: 7.02499 | K4: 143.1875 | L4: 0 | M4: 6.3 | N4: 157.25044 | O4: 72.64353 | P4: 0 | Q4: 241.58279 | R4: 0 | S4: 2001.45238 | T4: 300.14433 | U4: 13.5597 | V4: =SUM(B4:U4) -> 32431.6959
A5: февраль | B5: 234.54015 | C5: 32804.3345 | D5: 442.54072 | E5: 1186.47093 | F5: 736.95106 | G5: 0.26001 | H5: 26.96392 | I5: 2713.46069 | J5: 336.71018 | K5: 268.52533 | L5: 0 | M5: 10.3 | N5: 68.56601 | O5: -20.09 | P5: 0 | Q5: 0 | R5: 0 | S5: 3823.15701 | T5: 477.06386 | U5: 351.05959 | V5: 43460.81396
A6: март | B6: 936.15349 | C6: 35708.66868 | D6: 278.57309 | E6: 7384.20614 | F6: 992.04564 | G6: 0 | H6: 31.22796 | I6: 1141.73914 | J6: 536.92144 | K6: 308.41594 | L6: 0 | M6: 40.06523 | N6: 237.05235 | O6: -18.54603 | P6: 0 | Q6: 5.24476 | R6: 0 | S6: 4750.58076 | T6: 5456.4677 | U6: 526.36818 | V6: 58315.18447
A7: 2 квартал | B7: =B8+B9+B10 -> 3621.00288 | C7: =C8+C9+C10 -> 108013.5965 | D7: 536.90722 | E7: 1351.7771 | F7: 2501.32467 | G7: 0 | H7: 81.65088 | I7: =I8+I9+I10 -> 6769.16855 | J7: 200.01827 | K7: 2613.97816 | L7: 0 | M7: 54.03939 | N7: 138540.6762 | O7: =O8+O9+O10 -> -43.65783 | P7: =P8+P9+P10 -> 0 | Q7: 100.10566 | R7: 0 | S7: 24071.13194 | T7: 6363.48721 | U7: 1702.68191 | V7: 296477.8887
A8: апрель | B8: 533.58637 | C8: 39820.61436 | D8: 30.52409 | E8: 960.06519 | F8: 858.68968 | G8: 0 | H8: 27.21696 | I8: 5458.85288 | J8: 189.76004 | K8: 415.03673 | L8: 0 | M8: -1.11947 | N8: 113.97592 | O8: -15.14527 | P8: 0 | Q8: 5.24476 | R8: 0 | S8: 18037.89547 | T8: 2348.45013 | U8: 1312.48924 | V8: 70096.13708
A9: май | B9: -306.3417 | C9: 29426.56616 | D9: 301.58856 | E9: =362.55285-30.2256 -> 332.32725 | F9: 618.6551 | G9: 0 | H9: 27.21696 | I9: 655.06939 | J9: 11.70071 | K9: 579.27355 | L9: 0 | M9: 5.2 | N9: 94.44662 | O9: -25.91389 | P9: 0 | Q9: 0 | R9: 0 | S9: 3088.95322 | T9: 1066.38888 | U9: 362.40195 | V9: 36237.53276
A10: июнь | B10: 3393.75821 | C10: 38766.41603 | D10: 204.79457 | E10: 59.38466 | F10: 1023.97989 | G10: 0 | H10: 27.21696 | I10: 655.24628 | J10: -1.44248 | K10: 1619.66788 | L10: 0 | M10: 49.95886 | N10: 138332.2536 | O10: -2.59867 | P10: 0 | Q10: 94.8609 | R10: 0 | S10: 2944.28325 | T10: 2948.6482 | U10: 27.79072 | V10: 190144.2189
A11: 3 квартал | B11: =B12+B13+B14 -> 6311.2769 | C11: =C12+C13+C14 -> 111533.3507 | D11: 565.17247 | E11: 3904.07466 | F11: 3180.70231 | G11: 0 | H11: 81.65088 | I11: 9779.79554 | J11: 196.36203 | K11: 978.53484 | L11: 195.84167 | M11: 810.29988 | N11: 466.39532 | O11: 6.80016 | P11: =P12+P13+P14 -> 0 | Q11: 264.32993 | R11: 0 | S11: 22297.93391 | T11: 4975.25518 | U11: 1255.18846 | V11: 166802.9649
A12: июль | B12: 1537.09584 | C12: 35616.12455 | D12: 84.47113 | E12: 3602.40896 | F12: 864.47641 | G12: 0 | H12: 27.21696 | I12: 6657.912 | J12: 186.75161 | K12: 26.26721 | L12: 195.84167 | M12: 11.7 | N12: 155.18741 | O12: 1 | P12: 0 | Q12: 5.24476 | R12: 0 | S12: 16648.09786 | T12: 1925.02187 | U12: 952.88596 | V12: 68497.7042
A13: август | B13: 4469.5619 | C13: 37206.5302 | D13: 265.45925 | E13: 296.24977 | F13: 1327.18152 | G13: 0 | H13: 27.21696 | I13: 1407.56169 | J13: 9.60509 | K13: 784.07864 | L13: 0 | M13: 468.08271 | N13: 236.33155 | O13: -4.97284 | P13: 0 | Q13: 177.43379 | R13: 0 | S13: 2552.84869 | T13: 1051.25694 | U13: 272.40394 | V13: 50546.8298
A14: сентябрь | B14: 304.61916 | C14: 38710.69596 | D14: 215.24209 | E14: 5.41593 | F14: 989.04438 | G14: 0 | H14: 27.21696 | I14: 1714.32185 | J14: 0.00533 | K14: 168.18899 | L14: 0 | M14: 330.51717 | N14: 74.87636 | O14: 10.773 | P14: 0 | Q14: 81.65138 | R14: 0 | S14: 3096.98736 | T14: 1998.97637 | U14: 29.89856 | V14: 47758.43085 | W14: 47758.43085 | X14: =W14-V14 -> 0
A15: 4 квартал | B15: =B16+B17+B18 -> 3001.21988 | C15: =C16+C17+C18 -> 147301.2029 | D15: -49.18561 | E15: 128.70552 | F15: 2890.52984 | G15: 0 | H15: 147.83921 | I15: =I16+I17+I18 -> 14478.24117 | J15: 212.33095 | K15: 12506.59334 | L15: 0 | M15: 132572.4504 | N15: -130048.848 | O15: =O16+O17+O18 -> 104.88496 | P15: =P16+P17+P18 -> 0 | Q15: 121.85619 | R15: 1.10544 | S15: 20236.8924 | T15: 7917.69461 | U15: 1347.74036 | V15: 212871.2535
A16: октябрь | B16: 561.6891 | C16: 39103.30465 | D16: 113.23153 | E16: 3.15282 | F16: 884.54064 | G16: 0 | H16: 87.04791 | I16: 8349.60318 | J16: 208.18498 | K16: 275.84709 | L16: 0 | M16: 131755.841 | N16: -131415.3257 | O16: 102.2608 | P16: 0 | Q16: 121.85619 | R16: 0 | S16: 13220.6443 | T16: 1135.53782 | U16: 685.93363 | V16: 65193.34999 | W16: 65193.34999 | X16: =W16-V16 -> 0
A17: ноябрь | B17: 248.22785 | C17: 37878.73904 | D17: 85.42522 | E17: 2.96207 | F17: 784.34069 | G17: 0 | H17: 19.448 | I17: 976.5534 | J17: 0 | K17: 8271.0583 | L17: 0 | M17: 8.14 | N17: 286.79611 | O17: -48.16528 | P17: 0 | Q17: 0 | R17: 1.09754 | S17: 2880.60859 | T17: 951.59046 | U17: 537.55067 | V17: 52884.37266 | W17: 52884.37266 | X17: =W17-V17 -> 0
A18: декабрь | B18: 2191.30293 | C18: 70319.15916 | D18: -247.84236 | E18: 122.59063 | F18: 1221.64851 | G18: 0 | H18: 41.3433 | I18: 5152.08459 | J18: 4.14597 | K18: 3959.68795 | L18: 0 | M18: 808.46935 | N18: 1079.68155 | O18: 50.78944 | P18: 0 | Q18: 0 | R18: 0.0079 | S18: 4135.63951 | T18: 5830.56633 | U18: 124.25606 | V18: =SUM(B18:U18) -> 94793.53082 | W18: 70782.39808 | X18: =W18-V18 -> -24011.13274
A20: Итого год | B20: =B3+B7+B11+B15 -> 14632.41866 | C20: =C3+C7+C11+C15 -> 453035.6369 | D20: =D3+D7+D11+D15 -> 5082.62369 | E20: 14395.98643 | F20: 10952.13237 | G20: 0.26001 | H20: 396.80285 | I20: 41740.82959 | J20: 1489.36786 | K20: =K3+K7+K11+K15 -> 16819.23511 | L20: 195.84167 | M20: 133493.4549 | N20: 9421.09229 | O20: 102.03479 | P20: =P3+P7+P11+P15 -> 0 | Q20: 733.11933 | R20: 1.10544 | S20: 77181.1484 | T20: 25490.11289 | U20: 5196.5982 | V20: =SUM(B20:U20) -> 810359.8014
O21: 103.34859 | V21: 786354.1707
H22: =14.1013+27.242 -> 41.3433 | I22: =4881.8346+0.93678 -> 4882.77138 | O22: =O20-O21 -> -1.3138 | V22: =V20-V21 -> 24005.63071

Sheet помесячно 2013 (hidden)
A1: 2015 год | B1: 32.12.2022
A2: Месяц | B2: Прибыль | C2: НДФЛ | D2: ЕНВД | E2: ЕСХН | F2: Госпошлина | G2: Отмененные налоги и сборы | H2: Аренда имущ. | I2: Аренда земли | J2: Экология | K2: Продажа земли | L2: Продажа имущества | M2: Платные услуги | N2: Штрафы | O2: Прочие неналоговые | P2: Прибыль МУП | Q2: Прочие (имущество) | R2: Проценты от бюджетных кредитов | S2: УСН | T2: Патент | U2: Имущество юр.л. | V2: ИТОГО
A3: 1 квартал | B3: =B4+B5+B6 -> 3953.052 | C3: =C4+C5+C6 -> 92365.32692 | D3: 279.33582 | E3: 14029.26926 | F3: 2976.92214 | G3: 0 | H3: 65.5219 | I3: 8832.9317 | J3: 452.47643 | K3: 3296.38378 | L3: 649.8978 | M3: 34.57296 | N3: 1276.46246 | O3: =O4+O5+O6 -> 23.18317 | P3: 0 | Q3: 5.24476 | R3: 0.45033 | S3: 18537.05955 | T3: 8661.73169 | U3: 1579.15817 | V3: 157018.9808
A4: январь | B4: 418.70873 | C4: 19838.51697 | D4: 42.49631 | E4: 41.25087 | F4: 668.09242 | G4: 0 | H4: 28.3233 | I4: 6557.54458 | J4: 3.70661 | K4: 1771.18781 | L4: 0 | M4: 15.13824 | N4: 60.39531 | O4: 243.19185 | P4: 0 | Q4: 5.24476 | R4: 0 | S4: 4055.21337 | T4: 1013.46916 | U4: 204.64976 | V4: =Q4+P4+O4+N4+M4+L4+K4+J4+I4+H4+G4+F4+E4+D4+C4+B4+R4+S4+T4+U4 -> 34967.13005
A5: февраль | B5: 186.61024 | C5: 35590.04949 | D5: 117.62012 | E5: 1948.3342 | F5: 1187.61943 | G5: 0 | H5: 28.3233 | I5: 896.81885 | J5: 204.35043 | K5: 149.79405 | L5: 164.2728 | M5: 8.20972 | N5: 66.47717 | O5: -202.28852 | P5: 0 | Q5: 0 | R5: 0.13151 | S5: 6099.10812 | T5: 669.34445 | U5: 703.84263 | V5: =Q5+P5+O5+N5+M5+L5+K5+J5+I5+H5+G5+F5+E5+D5+C5+B5+R5+S5+T5+U5 -> 47818.61799
A6: март | B6: 3347.73303 | C6: 36936.76046 | D6: 119.21939 | E6: 12039.68419 | F6: 1121.21029 | G6: 0 | H6: 8.8753 | I6: 1378.56827 | J6: 244.41939 | K6: 1375.40192 | L6: 485.625 | M6: 11.225 | N6: 1149.58998 | O6: -17.72016 | P6: 0 | Q6: 0 | R6: 0.31882 | S6: 8382.73806 | T6: 6978.91808 | U6: 670.66578 | V6: =Q6+P6+O6+N6+M6+L6+K6+J6+I6+H6+G6+F6+E6+D6+C6+B6+R6+S6+T6+U6 -> 74233.2328 | W6: 74233.2328 | X6: =W6-V6 -> 0
A7: 2 квартал | B7: =B8+B9+B10 -> 4412.84047 | C7: =C8+C9+C10 -> 103239.7995 | D7: 108.28247 | E7: 1105.26215 | F7: 2616.11356 | G7: 0 | H7: 104.4179 | I7: 9065.83067 | J7: 327.76632 | K7: 5006.62144 | L7: 0 | M7: 23.4 | N7: 856.43025 | O7: -19.66372 | P7: 0 | Q7: 5.24476 | R7: 0.08632 | S7: 35541.00247 | T7: 7017.49812 | U7: 1761.00727 | V7: 171171.9399
A8: апрель | B8: 1323.25317 | C8: 33096.40838 | D8: 85.60678 | E8: 423.47607 | F8: 788.78563 | G8: 0 | H8: 47.7713 | I8: 6845.19847 | J8: 124.91936 | K8: 120.6209 | L8: 0 | M8: 8.2 | N8: 224.87714 | O8: -12.95215 | P8: 0 | Q8: 5.24476 | R8: 0.08632 | S8: 22418.59957 | T8: 3508.79561 | U8: 1400.06458 | V8: =Q8+P8+O8+N8+M8+L8+K8+J8+I8+H8+G8+F8+E8+D8+C8+B8+R8+S8+T8+U8 -> 70408.95589
A9: май | B9: 627.10999 | C9: 32495.75801 | D9: -10.65894 | E9: =580.53514-78 -> 502.53514 | F9: 911.11865 | G9: 0 | H9: 28.3233 | I9: 1368.16923 | J9: 19.08156 | K9: 1033.21466 | L9: 0 | M9: 3.2 | N9: 150.69919 | O9: 21.40512 | P9: 0 | Q9: 0 | R9: 0 | S9: 9080.43626 | T9: 1481.40008 | U9: 230.25663 | V9: =Q9+P9+O9+N9+M9+L9+K9+J9+I9+H9+G9+F9+E9+D9+C9+B9+R9+S9+T9+U9 -> 47942.04888
A10: июнь | B10: 2462.47731 | C10: 37647.63307 | D10: 33.33463 | E10: 179.25094 | F10: 916.20928 | G10: 0 | H10: 28.3233 | I10: 852.46297 | J10: 183.7654 | K10: 3852.78588 | L10: 0 | M10: 12 | N10: 480.85392 | O10: -28.11669 | P10: 0 | Q10: 0 | R10: 0 | S10: 4041.96664 | T10: 2027.30243 | U10: 130.68606 | V10: =Q10+P10+O10+N10+M10+L10+K10+J10+I10+H10+G10+F10+E10+D10+C10+B10+R10+S10+T10+U10 -> 52820.93514
A11: 3 квартал | B11: =B12+B13+B14 -> 19668.29976 | C11: =C12+C13+C14 -> 127040.8037 | D11: =D12+D13+D14 -> 31.17407 | E11: 6516.78007 | F11: 3013.6228 | G11: 0 | H11: 709.3792 | I11: 9398.3541 | J11: 125.80165 | K11: 19018.24002 | L11: 0 | M11: 165.46708 | N11: 830.37147 | O11: 5.94839 | P11: 0 | Q11: 491.58101 | R11: 0.33148 | S11: 34468.81941 | T11: 3052.37104 | U11: 1817.37945 | V11: 226354.7247
A12: июль | B12: 6961.98893 | C12: 41066.67815 | D12: 28.06409 | E12: 5979.41589 | F12: 994.62072 | G12: 0 | H12: 52.6333 | I12: 7948.2771 | J12: 127.3317 | K12: -417.59809 | L12: 0 | M12: 39.874 | N12: 506.98513 | O12: 58.97466 | P12: 0 | Q12: 209.06177 | R12: 0 | S12: 23037.72284 | T12: 1202.51735 | U12: 1139.35666 | V12: =Q12+P12+O12+N12+M12+L12+K12+J12+I12+H12+G12+F12+E12+D12+C12+B12+R12+S12+T12+U12 -> 88935.9042
A13: август | B13: 7979.67281 | C13: 43795.16152 | D13: 23.96745 | E13: 413.25513 | F13: 1097.961 | G13: 0 | H13: 31.1833 | I13: 872.52242 | J13: -16.50557 | K13: 16993.64151 | L13: 0 | M13: 166.91977 | N13: 246.88284 | O13: -59.33787 | P13: 0 | Q13: 167.59178 | R13: 0 | S13: 6386.86372 | T13: 488.96154 | U13: 711.51296 | V13: =Q13+P13+O13+N13+M13+L13+K13+J13+I13+H13+G13+F13+E13+D13+C13+B13+R13+S13+T13+U13 -> 79300.25431 | W13: 79300.25431 | X13: =W13-V13 -> 0
A14: сентябрь | B14: 4726.63802 | C14: 42178.96404 | D14: -20.85747 | E14: 124.10905 | F14: 921.04108 | G14: 0 | H14: 625.5626 | I14: 577.55458 | J14: 14.97552 | K14: 2442.1966 | L14: 0 | M14: -41.32669 | N14: 76.5035 | O14: 6.3116 | P14: 0 | Q14: 114.92746 | R14: 0.33148 | S14: 5044.23285 | T14: 1360.89215 | U14: -33.49017 | V14: =Q14+P14+O14+N14+M14+L14+K14+J14+I14+H14+G14+F14+E14+D14+C14+B14+R14+S14+T14+U14 -> 58118.5662 | W14: 58118.5662 | X14: =W14-V14 -> 0
A15: 4 квартал | B15: =B16+B17+B18 -> 5622.82004 | C15: =C16+C17+C18 -> 173895.3526 | D15: 130.27531 | E15: 91.85397 | F15: 3061.41965 | G15: 0 | H15: 75.6483 | I15: 12160.58315 | J15: 141.51044 | K15: 12600.96242 | L15: 0 | M15: 276.39614 | N15: 698.83704 | O15: -2.54775 | P15: 0 | Q15: 784.95314 | R15: 8.21368 | S15: 35739.58216 | T15: 10368.35231 | U15: 1843.79208 | V15: 257498.0047
A16: октябрь | B16: 3004.00566 | C16: 42917.91314 | D16: 254.29133 | E16: 82.11297 | F16: 909.79983 | G16: 0 | H16: 12.2019 | I16: 6243.62038 | J16: 124.82077 | K16: 5395.78769 | L16: 0 | M16: 113.449 | N16: 162.66353 | O16: -9.45298 | P16: 0 | Q16: 285.20377 | R16: 0 | S16: 22575.84647 | T16: 1434.70056 | U16: 970.75378 | V16: =SUM(B16:U16) -> 84477.7178 | W16: 84547.96392 | X16: =W16-V16 -> 70.24612
A17: ноябрь | B17: 1094.434 | C17: 45362.16052 | D17: 97.4388 | E17: 0.05852 | F17: 1004.29785 | G17: 0 | H17: 32.1492 | I17: 1034.49996 | J17: 16.55846 | K17: 1384.22753 | L17: 0 | M17: 14.1 | N17: 124.98265 | O17: 31.78493 | P17: 0 | Q17: 210.16796 | R17: 8.19861 | S17: 3661.02092 | T17: 1044.35317 | U17: 533.52298 | V17: =Q17+P17+O17+N17+M17+L17+K17+J17+I17+H17+G17+F17+E17+D17+C17+B17+R17+S17+T17+U17 -> 55653.95606
A18: декабрь | B18: 1524.38038 | C18: 85615.27896 | D18: -221.45482 | E18: 9.68248 | F18: 1147.32197 | G18: 0 | H18: 31.2972 | I18: 4882.46281 | J18: 0.13121 | K18: 5820.9472 | L18: 0 | M18: 148.84714 | N18: 411.19086 | O18: -24.8797 | P18: 0 | Q18: 289.58141 | R18: 0.01507 | S18: 9502.71477 | T18: 7889.29858 | U18: 339.51532 | V18: 117366.3308 | W18: 88560.78667 | X18: =W18-V18 -> -28805.54417
A20: Итого год | B20: =B3+B7+B11+B15 -> 33657.01227 | C20: =C3+C7+C11+C15 -> 496541.2827 | D20: 549.06767 | E20: 21743.16545 | F20: 11668.07815 | G20: 0 | H20: =H3+H7+H11+H15 -> 954.9673 | I20: 39457.69962 | J20: 1047.55484 | K20: 39922.20766 | L20: 649.8978 | M20: 499.83618 | N20: 3662.10122 | O20: 6.92009 | P20: 0 | Q20: 1287.02367 | R20: 9.08181 | S20: =S3+S7+S11+S15 -> 124286.4636 | T20: 29099.95316 | U20: 7001.33697 | V20: =V3+V7+V11+V15 -> 812043.6502
O21: 1.47642 | V21: 783238.106
O22: =O21-O20 -> -5.44367 | V22: =V21-V20 -> -28805.54417

Sheet Поступления
A1: =CONCATENATE("Сведения о поступлении доходов по МО Кореновский район на ", 'помесячно 2013'!B1," г.") -> Сведения о поступлении доходов по МО Кореновский район на 32.12.2022 г.
A3: Наименование доходов | B3: Бюджетное назначение доходов в 2022 году | C3: Факт с начала 2022 года | D3: % исполнения | E3: откл. в сумме | F3: Факт с начала 2021 года | G3: % роста 2022 г. к 2021 г. | H3: Факт с начала 2022 года в условиях 2021 года | I3: % роста 2022 г. к 2021 г. в сопоставимых условия
A4: Поступление собственных доходов -всего : | B4: =B5+B15 -> 736700 | C4: =C5+C15 -> 812043.6502 | D4: =C4/B4*100 -> 110.227182 | E4: =C4-B4 -> 75343.65016 | F4: =F5+F15 -> 810359.8014 | G4: =C4/F4*100 -> 100.2077903 | H4: =C4-C7-C10+H7+H10 -> 810352.5609 | I4: =C4/H4*100 -> 100.2086856
A5: Налоговые доходы | B5: =SUM(B6:B14) -> 661371 | C5: =SUM(C6:C14) -> 724546.36 | D5: =C5/B5*100 -> 109.5521818 | E5: =C5-B5 -> 63175.35997 | F5: =SUM(F6:F14) -> 605966.9176 | G5: =C5/F5*100 -> 119.568633
A6: Налог на прибыль | B6: 31500 | C6: ='помесячно 2013'!B20 -> 33657.01227 | D6: 106.847658 | E6: 2157.01227 | F6: ='помесячно 2012'!B20 -> 14632.41866 | G6: 230.0167392
A7: Налог на доходы физических лиц | B7: 451750 | C7: ='помесячно 2013'!C20 -> 496541.2827 | D7: 109.9150598 | E7: 44791.28271 | F7: ='помесячно 2012'!C20 -> 453035.6369 | G7: 109.6031398 | H7: =C7*38.72/36.13 -> 532136.1325 | I7: =H7/F7*100 -> 117.4601045
A8: ЕНВД | B8: 400 | C8: ='помесячно 2013'!D20 -> 549.06767 | D8: 137.2669175 | E8: 149.06767 | F8: ='помесячно 2012'!D20 -> 5082.62369 | G8: 10.80283931
A9: ЕСХН | B9: 21500 | C9: ='помесячно 2013'!E20 -> 21743.16545 | D9: 101.1310021 | E9: 243.16545 | F9: ='помесячно 2012'!E20 -> 14395.98643 | G9: 151.0363014
A10: УСН | B10: 115271 | C10: ='помесячно 2013'!S20 -> 124286.4636 | D10: 107.821103 | E10: 9015.46359 | F10: ='помесячно 2012'!S20 -> 77181.1484 | G10: 161.0321512 | H10: =C10*35/50 -> 87000.52451 | I10: =H10/F10*100 -> 112.7225058
A11: Патент | B11: 23760 | C11: ='помесячно 2013'!T20 -> 29099.95316 | D11: 122.4745503 | E11: 5339.95316 | F11: ='помесячно 2012'!T20 -> 25490.11289 | G11: 114.1617273
A12: Налог на имущество организаций | B12: 6190 | C12: ='помесячно 2013'!U20 -> 7001.33697 | D12: 113.1072208 | E12: 811.33697 | F12: ='помесячно 2012'!U20 -> 5196.5982 | G12: 134.7292344
A13: Госпошлина | B13: 11000 | C13: ='помесячно 2013'!F20 -> 11668.07815 | D13: 106.0734377 | E13: 668.07815 | F13: ='помесячно 2012'!F20 -> 10952.13237 | G13: 106.5370446
A14: Доходы по отмененным налогам | B14: 0 | C14: ='помесячно 2013'!G20 -> 0 | E14: 0 | F14: ='помесячно 2012'!G20 -> 0.26001 | G14: 0
A15: Неналоговые доходы | B15: =SUM(B16:B26) -> 75329 | C15: =SUM(C16:C26) -> 87497.29019 | D15: 116.1535268 | E15: 12168.29019 | F15: =SUM(F16:F26) -> 204392.8838 | G15: 42.80838382
A16: Аренда имущества | B16: 800 | C16: ='помесячно 2013'!H20 -> 954.9673 | D16: 119.3709125 | E16: 154.9673 | F16: ='помесячно 2012'!H20 -> 396.80285 | G16: 240.6654337
A17: Арендная плата за землю | B17: 34700 | C17: ='помесячно 2013'!I20 -> 39457.69962 | D17: 113.7109499 | E17: 4757.69962 | F17: ='помесячно 2012'!I20 -> 41740.82959 | G17: 94.53022378
A18: Плата за негативное воздействие | B18: 1000 | C18: ='помесячно 2013'!J20 -> 1047.55484 | D18: 104.755484 | E18: 47.55484 | F18: ='помесячно 2012'!J20 -> 1489.36786 | G18: 70.33553416
A19: Доходы от платных услуг | B19: 284 | C19: ='помесячно 2013'!M20 -> 499.83618 | D19: 175.9986549 | E19: 215.83618 | F19: ='помесячно 2012'!M20 -> 133493.4549 | G19: 0.3744274808
A20: Штрафы | B20: 2989 | C20: ='помесячно 2013'!N20 -> 3662.10122 | D20: 122.519278 | E20: 673.10122 | F20: ='помесячно 2012'!N20 -> 9421.09229 | G20: 38.87130183
A21: Доход от реализации земли | B21: 33900 | C21: ='помесячно 2013'!K20 -> 39922.20766 | D21: 117.7646244 | E21: 6022.20766 | F21: ='помесячно 2012'!K20 -> 16819.23511 | G21: 237.3604233
A22: Доход от реализации имущества | B22: 646 | C22: ='помесячно 2013'!L20 -> 649.8978 | D22: 100.6033746 | E22: 3.8978 | F22: ='помесячно 2012'!L20 -> 195.84167 | G22: 331.8485795
A23: Прочие неналоговые поступления | B23: 1 | C23: ='помесячно 2013'!O20 -> 6.92009 | D23: 692.009 | E23: 5.92009 | F23: ='помесячно 2012'!O20 -> 102.03479 | G23: =C23/F23*100 -> 6.782088737
A24: Доходы от доли в уставном капитале | B24: 0 | C24: ='помесячно 2013'!P20 -> 0 | E24: 0 | F24: ='помесячно 2012'!P20 -> 0
A25: Проценты от бюджетных кредитов | B25: 9 | C25: ='помесячно 2013'!R20 -> 9.08181 | D25: 100.909 | E25: 0.08181 | F25: ='помесячно 2012'!R20 -> 1.10544 | G25: 821.5561224
A26: Прочие доходы от имущества | B26: 1000 | C26: ='помесячно 2013'!Q20 -> 1287.02367 | D26: 128.702367 | E26: 287.02367 | F26: ='помесячно 2012'!Q20 -> 733.11933 | G26: 175.5544585
A29: =CONCATENATE("Сведения о поступлении доходов по МО Кореновский район за четвертый квартал 2022 года на ", 'помесячно 2013'!B1," г.") -> Сведения о поступлении доходов по МО Кореновский район за четвертый квартал 2022 года на 32.12.2022 г.
A31: Наименование доходов | B31: План 4 квартал 2022 г. | C31: Факт с начала 4 квартала 2022 г. | D31: % исполнения | E31: откл. в сумме | F31: Факт с начала 4 квартала 2021 г. | G31: % роста 2022 г. к 2021 г. | H31: Факт с начала 2022 года в условиях 2021 года | I31: % роста 2022 г. к 2021 г. в сопоставимых условия
A32: Поступление собственных доходов -всего : | B32: =B33+B43 -> 212829 | C32: =C33+C43 -> 257498.0047 | D32: =C32/B32*100 -> 120.9882134 | E32: =C32-B32 -> 44669.0047 | F32: =F33+F43 -> 212871.2535 | G32: =C32/F32*100 -> 120.9641981 | H32: =C32-C35-C38+H35+H38 -> 259241.9192 | I32: =H32/F32*100 -> 121.7834325
A33: Налоговые доходы | B33: =SUM(B34:B42) -> 198446 | C33: =SUM(C34:C42) -> 230753.4481 | D33: =C33/B33*100 -> 116.2802214 | E33: =C33-B33 -> 32307.44814 | F33: =SUM(F34:F42) -> 182774.7999 | G33: =C33/F33*100 -> 126.2501441
A34: Налог на прибыль | B34: 8500 | C34: ='помесячно 2013'!B15 -> 5622.82004 | D34: 66.150824 | E34: -2877.17996 | F34: ='помесячно 2012'!B15 -> 3001.21988 | G34: =C34/F34*100 -> 187.3511527
A35: Налог на доходы физических лиц | B35: 139315 | C35: ='помесячно 2013'!C15 -> 173895.3526 | D35: 124.8217009 | E35: 34580.35262 | F35: ='помесячно 2012'!C15 -> 147301.2029 | G35: 118.0542652 | H35: =C35*38.72/36.13 -> 186361.1418 | I35: =H35/F35*100 -> 126.5170536
A36: ЕНВД | B36: 0 | C36: ='помесячно 2013'!D15 -> 130.27531 | E36: 130.27531 | F36: ='помесячно 2012'!D15 -> -49.18561 | G36: -264.864683
A37: ЕСХН | B37: 0 | C37: ='помесячно 2013'!E15 -> 91.85397 | E37: 91.85397 | F37: ='помесячно 2012'!E15 -> 128.70552 | G37: 71.36754507
A38: УСН | B38: 40271 | C38: ='помесячно 2013'!S15 -> 35739.58216 | D38: 88.7476898 | E38: -4531.41784 | F38: ='помесячно 2012'!S15 -> 20236.8924 | G38: 176.6060789 | H38: =C38*35/50 -> 25017.70751 | I38: =H38/F38*100 -> 123.6242552
A39: Патент | B39: 6260 | C39: ='помесячно 2013'!T15 -> 10368.35231 | D39: 165.6286312 | E39: 4108.35231 | F39: ='помесячно 2012'!T15 -> 7917.69461 | G39: 130.9516573
A40: Налог на имущество организаций | B40: 1900 | C40: ='помесячно 2013'!U15 -> 1843.79208 | D40: 97.04168842 | E40: -56.20792 | F40: ='помесячно 2012'!U15 -> 1347.74036 | G40: 136.8061783
A41: Госпошлина | B41: 2200 | C41: ='помесячно 2013'!F15 -> 3061.41965 | D41: 139.1554386 | E41: 861.41965 | F41: ='помесячно 2012'!F15 -> 2890.52984 | G41: 105.9120583
A42: Доходы по отмененным налогам | B42: 0 | C42: ='помесячно 2013'!G15 -> 0 | E42: 0 | F42: ='помесячно 2012'!G15 -> 0
A43: Неналоговые доходы | B43: =SUM(B44:B54) -> 14383 | C43: =SUM(C44:C54) -> 26744.55656 | D43: 185.9456063 | E43: 12361.55656 | F43: =SUM(F44:F54) -> 30096.45362 | G43: 88.86281719
A44: Аренда имущества | B44: 730 | C44: ='помесячно 2013'!H15 -> 75.6483 | D44: 10.36278082 | E44: -654.3517 | F44: ='помесячно 2012'!H15 -> 147.83921 | G44: 51.16930752
A45: Арендная плата за землю | B45: 6745 | C45: ='помесячно 2013'!I15 -> 12160.58315 | D45: 180.2903358 | E45: 5415.58315 | F45: ='помесячно 2012'!I15 -> 14478.24117 | G45: 83.99213003
A46: Плата за негативное воздействие | B46: 75 | C46: ='помесячно 2013'!J15 -> 141.51044 | D46: 188.6805867 | E46: 66.51044 | F46: ='помесячно 2012'!J15 -> 212.33095 | G46: 66.64616722
A47: Доходы от платных услуг | B47: 164 | C47: ='помесячно 2013'!M15 -> 276.39614 | D47: 168.5342317 | E47: 112.39614 | F47: ='помесячно 2012'!M15 -> 132572.4504 | G47: 0.2084868608
A48: Штрафы | B48: 360 | C48: ='помесячно 2013'!N15 -> 698.83704 | D48: 194.1214 | E48: 338.83704 | F48: ='помесячно 2012'!N15 -> -130048.848 | G48: -0.5373650369
A49: Доход от реализации земли | B49: 5600 | C49: ='помесячно 2013'!K15 -> 12600.96242 | D49: 225.0171861 | E49: 7000.96242 | F49: ='помесячно 2012'!K15 -> 12506.59334 | G49: 100.7545546
A50: Доход от реализации имущества | B50: 0 | C50: ='помесячно 2013'!L15 -> 0 | E50: 0 | F50: ='помесячно 2012'!L15 -> 0
A51: Прочие неналоговые поступления | B51: 0 | C51: ='помесячно 2013'!O15 -> -2.54775 | E51: -2.54775 | F51: ='помесячно 2012'!O15 -> 104.88496 | G51: -2.429089929
A52: Доходы от доли в уставном капитале | B52: 0 | C52: ='помесячно 2013'!P15 -> 0 | E52: 0 | F52: ='помесячно 2012'!P15 -> 0
A53: Проценты от бюджетных кредитов | B53: 9 | C53: ='помесячно 2013'!R15 -> 8.21368 | D53: 91.26311111 | E53: -0.78632 | F53: ='помесячно 2012'!R15 -> 1.10544 | G53: 743.0235924
A54: Прочие доходы от имущества | B54: 700 | C54: ='помесячно 2013'!Q15 -> 784.95314 | D54: 112.1361629 | E54: 84.95314 | F54: ='помесячно 2012'!Q15 -> 121.85619 | G54: 644.1635341
A56: =CONCATENATE("Сведения о поступлении доходов МО Кореновский район за декабрь 2022 года на ", 'помесячно 2013'!B1," г.") -> Сведения о поступлении доходов МО Кореновский район за декабрь 2022 года на 32.12.2022 г.
A58: Наименование доходов | B58: План на месяц (декабрь) | C58: Факт с начала месяца (декабрь) | D58: % исполнения | E58: откл. в сумме | F58: Факт с начала месяца 2021 года | G58: % роста 2022 г. к 2021 г. | H58: Факт с начала 2022 года в условиях 2021 года | I58: % роста 2022 г. к 2021 г. в сопоставимых условия
A59: Поступление собственных доходов -всего : | B59: =B60+B70 -> 95501 | C59: =C60+C70 -> 117366.3308 | D59: =C59/B59*100 -> 122.8953946 | E59: =C59-B59 -> 21865.33084 | F59: =F60+F70 -> 94793.53082 | G59: =C59/F59*100 -> 123.8125955 | H59: =C59-C62-C65+H62+H65 -> 120652.8973 | I59: =H59/F59*100 -> 127.2796743
A60: Налоговые доходы | B60: =SUM(B61:B69) -> 93955 | C60: =SUM(C61:C69) -> 105806.7376 | D60: =C60/B60*100 -> 112.6142703 | E60: =C60-B60 -> 11851.73764 | F60: =SUM(F61:F69) -> 83697.32077 | G60: =C60/F60*100 -> 126.4159195
A61: Налог на прибыль | B61: 3500 | C61: ='помесячно 2013'!B18 -> 1524.38038 | D61: 43.55372514 | E61: -1975.61962 | F61: ='помесячно 2012'!B18 -> 2191.30293 | G61: 69.56502267
A62: Налог на доходы физических лиц | B62: 67450 | C62: ='помесячно 2013'!C18 -> 85615.27896 | D62: 126.9314736 | E62: 18165.27896 | F62: ='помесячно 2012'!C18 -> 70319.15916 | G62: 121.7524214 | H62: =C62*38.72/36.13 -> 91752.65988 | I62: =H62/F62*100 -> 130.4803143
A63: ЕНВД | B63: 0 | C63: ='помесячно 2013'!D18 -> -221.45482 | E63: -221.45482 | F63: ='помесячно 2012'!D18 -> -247.84236 | G63: 89.35309525
A64: ЕСХН | B64: 0 | C64: ='помесячно 2013'!E18 -> 9.68248 | E64: 9.68248 | F64: ='помесячно 2012'!E18 -> 122.59063 | G64: 7.898221911
A65: УСН | B65: 16305 | C65: ='помесячно 2013'!S18 -> 9502.71477 | D65: 58.28098602 | E65: -6802.28523 | F65: ='помесячно 2012'!S18 -> 4135.63951 | G65: =C65/F65*100 -> 229.7761869 | H65: =C65*35/50 -> 6651.900339 | I65: =H65/F65*100 -> 160.8433308
A66: Патент | B66: 4600 | C66: ='помесячно 2013'!T18 -> 7889.29858 | D66: 171.5064909 | E66: 3289.29858 | F66: ='помесячно 2012'!T18 -> 5830.56633 | G66: =C66/F66*100 -> 135.3093016
A67: Налог на имущество организаций | B67: 1100 | C67: ='помесячно 2013'!U18 -> 339.51532 | D67: 30.86502909 | E67: -760.48468 | F67: ='помесячно 2012'!U18 -> 124.25606 | G67: =C67/F67*100 -> 273.23844
A68: Госпошлина | B68: 1000 | C68: ='помесячно 2013'!F18 -> 1147.32197 | D68: 114.732197 | E68: 147.32197 | F68: ='помесячно 2012'!F18 -> 1221.64851 | G68: 93.91588175
A69: Доходы по отмененным налогам | B69: 0 | C69: ='помесячно 2013'!G18 -> 0 | E69: 0 | F69: ='помесячно 2012'!G18 -> 0
A70: Неналоговые доходы | B70: =SUM(B71:B81) -> 1546 | C70: =SUM(C71:C81) -> 11559.5932 | D70: 747.7097801 | E70: 10013.5932 | F70: =SUM(F71:F81) -> 11096.21005 | G70: 104.1760488
A71: Аренда имущества | B71: 50 | C71: ='помесячно 2013'!H18 -> 31.2972 | D71: 62.5944 | E71: -18.7028 | F71: ='помесячно 2012'!H18 -> 41.3433 | G71: 75.7007786
A72: Арендная плата за землю | B72: -4143 | C72: ='помесячно 2013'!I18 -> 4882.46281 | D72: -117.8484868 | E72: 9025.46281 | F72: ='помесячно 2012'!I18 -> 5152.08459 | G72: 94.76674392
A73: Плата за негативное воздействие | B73: -80 | C73: ='помесячно 2013'!J18 -> 0.13121 | D73: -0.1640125 | E73: 80.13121 | F73: ='помесячно 2012'!J18 -> 4.14597 | G73: =C73/F73*100 -> 3.164759996
A74: Доходы от платных услуг | B74: 15 | C74: ='помесячно 2013'!M18 -> 148.84714 | D74: 992.3142667 | E74: 133.84714 | F74: ='помесячно 2012'!M18 -> 808.46935 | G74: 18.4109812
A75: Штрафы | B75: 95 | C75: ='помесячно 2013'!N18 -> 411.19086 | D75: 432.8324842 | E75: 316.19086 | F75: ='помесячно 2012'!N18 -> 1079.68155 | G75: 38.0844574
A76: Доход от реализации земли | B76: 5100 | C76: ='помесячно 2013'!K18 -> 5820.9472 | D76: 114.1362196 | E76: 720.9472 | F76: ='помесячно 2012'!K18 -> 3959.68795 | G76: 147.0052002
A77: Доход от реализации имущества | B77: 0 | C77: ='помесячно 2013'!L18 -> 0 | E77: 0 | F77: ='помесячно 2012'!L18 -> 0
A78: Прочие неналоговые поступления | B78: 0 | C78: ='помесячно 2013'!O18 -> -24.8797 | E78: -24.8797 | F78: ='помесячно 2012'!O18 -> 50.78944 | G78: -48.98597031
A79: Доходы от доли в уставном капитале | B79: 0 | C79: ='помесячно 2013'!P18 -> 0 | E79: 0 | F79: ='помесячно 2012'!P18 -> 0
A80: Проценты от бюджетных кредитов | B80: 9 | C80: ='помесячно 2013'!R18 -> 0.01507 | D80: 0.1674444444 | E80: -8.98493 | F80: ='помесячно 2012'!R18 -> 0.0079 | G80: 190.7594937
A81: Прочие доходы от имущества | B81: 500 | C81: ='помесячно 2013'!Q18 -> 289.58141 | D81: 57.916282 | E81: -210.41859 | F81: ='помесячно 2012'!Q18 -> 0
A83: =CONCATENATE("Сведения о поступлении доходов МО Кореновский район с начала 2022 года на ", 'помесячно 2013'!B1," г.") -> Сведения о поступлении доходов МО Кореновский район с начала 2022 года на 32.12.2022 г.
A85: Наименование доходов | B85: План (январь-декабрь) | C85: Факт с начала года | D85: % исполнения | E85: откл. в сумме | F85: Факт с начала 2021 года | G85: % роста 2022 г. к 2021 г. | H85: Факт с начала 2022 года в условиях 2021 года | I85: % роста 2022 г. к 2021 г. в сопоставимых условия
A86: Поступление собственных доходов -всего : | B86: =B87+B97 -> 736700 | C86: =C87+C97 -> 812043.6502 | D86: =C86/B86*100 -> 110.227182 | E86: =C86-B86 -> 75343.65016 | F86: =F87+F97 -> 810359.8014 | G86: =C86/F86*100 -> 100.2077903 | H86: =C86-C89-C92+H89+H92 -> 810352.5609 | I86: =H86/F86*100 -> 99.9991065
A87: Налоговые доходы | B87: =SUM(B88:B96) -> 661371 | C87: =SUM(C88:C96) -> 724546.36 | D87: =C87/B87*100 -> 109.5521818 | E87: =C87-B87 -> 63175.35997 | F87: =SUM(F88:F96) -> 605966.9176 | G87: =C87/F87*100 -> 119.568633
A88: Налог на прибыль | B88: 31500 | C88: ='помесячно 2013'!B20 -> 33657.01227 | D88: 106.847658 | E88: 2157.01227 | F88: ='помесячно 2012'!B20 -> 14632.41866 | G88: 230.0167392
A89: Налог на доходы физических лиц | B89: 451750 | C89: ='помесячно 2013'!C20 -> 496541.2827 | D89: 109.9150598 | E89: 44791.28271 | F89: ='помесячно 2012'!C20 -> 453035.6369 | G89: 109.6031398 | H89: =C89*38.72/36.13 -> 532136.1325 | I89: =H89/F89*100 -> 117.4601045
A90: ЕНВД | B90: 400 | C90: ='помесячно 2013'!D20 -> 549.06767 | D90: 137.2669175 | E90: 149.06767 | F90: ='помесячно 2012'!D20 -> 5082.62369 | G90: 10.80283931
A91: ЕСХН | B91: 21500 | C91: ='помесячно 2013'!E20 -> 21743.16545 | D91: 101.1310021 | E91: 243.16545 | F91: ='помесячно 2012'!E20 -> 14395.98643 | G91: 151.0363014
A92: УСН | B92: 115271 | C92: ='помесячно 2013'!S20 -> 124286.4636 | D92: 107.821103 | E92: 9015.46359 | F92: ='помесячно 2012'!S20 -> 77181.1484 | G92: =C92/F92*100 -> 161.0321512 | H92: =C92*35/50 -> 87000.52451 | I92: =H92/F92*100 -> 112.7225058
A93: Патент | B93: 23760 | C93: ='помесячно 2013'!T20 -> 29099.95316 | D93: 122.4745503 | E93: 5339.95316 | F93: ='помесячно 2012'!T20 -> 25490.11289 | G93: =C93/F93*100 -> 114.1617273
A94: Налог на имущество организаций | B94: 6190 | C94: ='помесячно 2013'!U20 -> 7001.33697 | D94: 113.1072208 | E94: 811.33697 | F94: ='помесячно 2012'!U20 -> 5196.5982 | G94: =C94/F94*100 -> 134.7292344
A95: Госпошлина | B95: 11000 | C95: ='помесячно 2013'!F20 -> 11668.07815 | D95: 106.0734377 | E95: 668.07815 | F95: ='помесячно 2012'!F20 -> 10952.13237 | G95: 106.5370446
A96: Доходы по отмененным налогам | B96: 0 | C96: ='помесячно 2013'!G20 -> 0 | E96: 0 | F96: ='помесячно 2012'!G20 -> 0.26001 | G96: 0
A97: Неналоговые доходы | B97: =SUM(B98:B108) -> 75329 | C97: =SUM(C98:C108) -> 87497.29019 | D97: 116.1535268 | E97: 12168.29019 | F97: =SUM(F98:F108) -> 204392.8838 | G97: 42.80838382
A98: Аренда имущества | B98: 800 | C98: ='помесячно 2013'!H20 -> 954.9673 | D98: 119.3709125 | E98: 154.9673 | F98: ='помесячно 2012'!H20 -> 396.80285 | G98: 240.6654337
A99: Арендная плата за землю | B99: 34700 | C99: ='помесячно 2013'!I20 -> 39457.69962 | D99: 113.7109499 | E99: 4757.69962 | F99: ='помесячно 2012'!I20 -> 41740.82959 | G99: 94.53022378
A100: Плата за негативное воздействие | B100: 1000 | C100: ='помесячно 2013'!J20 -> 1047.55484 | D100: 104.755484 | E100: 47.55484 | F100: ='помесячно 2012'!J20 -> 1489.36786 | G100: 70.33553416
A101: Доходы от платных услуг | B101: 284 | C101: ='помесячно 2013'!M20 -> 499.83618 | D101: 175.9986549 | E101: 215.83618 | F101: ='помесячно 2012'!M20 -> 133493.4549 | G101: 0.3744274808
A102: Штрафы | B102: 2989 | C102: ='помесячно 2013'!N20 -> 3662.10122 | D102: 122.519278 | E102: 673.10122 | F102: ='помесячно 2012'!N20 -> 9421.09229 | G102: 38.87130183
A103: Доход от реализации земли | B103: 33900 | C103: ='помесячно 2013'!K20 -> 39922.20766 | D103: 117.7646244 | E103: 6022.20766 | F103: ='помесячно 2012'!K20 -> 16819.23511 | G103: 237.3604233
A104: Доход от реализации имущества | B104: 646 | C104: ='помесячно 2013'!L20 -> 649.8978 | D104: 100.6033746 | E104: 3.8978 | F104: ='помесячно 2012'!L20 -> 195.84167 | G104: 331.8485795
A105: Прочие неналоговые поступления | B105: 1 | C105: ='помесячно 2013'!O20 -> 6.92009 | D105: 692.009 | E105: 5.92009 | F105: ='помесячно 2012'!O20 -> 102.03479 | G105: 6.782088737
A106: Доходы от доли в уставном капитале | B106: 0 | C106: ='помесячно 2013'!P20 -> 0 | E106: 0 | F106: ='помесячно 2012'!P20 -> 0
A107: Проценты от бюджетных кредитов | B107: 9 | C107: ='помесячно 2013'!R20 -> 9.08181 | D107: 100.909 | E107: 0.08181 | F107: ='помесячно 2012'!R20 -> 1.10544 | G107: 821.5561224
A108: Прочие доходы от имущества | B108: 1000 | C108: ='помесячно 2013'!Q20 -> 1287.02367 | D108: 128.702367 | E108: 287.02367 | F108: ='помесячно 2012'!Q20 -> 733.11933 | G108: 175.5544585

Sheet control (hidden)
A1: Путь к SvDoh.xlsx | B1: \\wall-e\text\экономисты\Главе (ежедневные поступления доходов)\ | G1: за месяц | H1: за 32.12.2022 | K1: для 2016 г. | L1: 31.12.2021
B2: Код | C2: =CONCATENATE("за ",J2,"-й месяц") -> за 12-й месяц | D2: 2020г | G2: дата | H2: =RIGHT(H1,10) -> 32.12.2022 | I2: месяц | J2: =LEFT(RIGHT(H1,7),2) -> 12 | K2: =VALUE(CONCATENATE(J2,LEFT(H2,2))) -> 1232 | L2: =MATCH(K2,[1]Лист1!$A$1:$IO$1,1) -> 249
A3: Прибыль | B3: 10101012000000000 | C3: 1524380.38 | D3: 2191302.93
A4: НДФЛ | B4: 10102010000000000 | C4: 82421831.07 | D4: 69395826.14
A5: НДФЛ* | B5: 10102020000000000 | C5: 192169.96 | D5: 193714.73
A6: НДФЛ* | B6: 10102030000000000 | C6: 857859.91 | D6: 480374.55
A7: НДФЛ* | B7: 10102040000000000 | C7: 271820.98 | D7: 236901.03
A8: ЕНВД | B8: 10502010000000000 | C8: -221470.18 | D8: -247697.64
A9: ЕНВД* | B9: 10502020000000000 | C9: 15.36 | D9: -144.72
A10: ЕСХН | B10: 10503010000000000 | C10: 9682.48 | D10: 44596.6
A11: НДФЛ(5млн.) | B11: 10102080000000000 | C11: 1871597.04 | D11: 0.39
A12: Пошлина (03) | B12: 10803010000000000 | C12: 1147321.97 | D12: 1221348.51
A13: Пошлина (07) | B13: 10807150000000000 | C13: 0 | D13: 0
A14: Отменёнка | B14: 10907033000000000 | C14: 0 | D14: 0
A15: Аренда по сервитутам | B15: 11105313000000000 | C15: 0 | D15: 0 | F15: Иправлено с Отмененки*
A16: Аренда и | B16: 11105035000000000 | C16: 5092.2 | D16: 14101.3
A17: Плата за землю(увел. стоимости) | B17: 11406313000000000 | C17: 0 | D17: 6115.41 | F17: Исправлено с Аренда Х…
A18: Аренда 3 | B18: 11105013000000000 | C18: 4866557.77 | D18: 5151147.81
A19: Экология | B19: 11201010000000000 | C19: 131.21 | D19: 0.02
A20: Экология* | B20: 11201020000000000 | C20: 0 | D20: 0
A21: Экология* | B21: 11201030000000000 | C21: 0.01 | D21: 0
A22: Имущество юр.л. | B22: 10602010000000000 | C22: 339515.32 | D22: 124256.06 | F22: Исправлено с экологии
A23: Свободен с 2019 | B23: 11201050000000000 | C23: 0 | D23: 0
A24: Платные (01) | B24: 11301995000000000 | C24: 13300 | D24: 6600
A25: Платные (02) | B25: 11302995000000000 | C25: 135547.14 | D25: 801869.35
A26: Штрафы (ХХ) | B26: 11603010000000000 | C26: 0 | D26: 0
A27: Штрафы (ХХ)* | B27: 11603030000000000 | C27: 0 | D27: 0
A28: Штрафы (ХХ) | B28: 11606000000000000 | C28: 0 | D28: 0
A29: Штрафы (ХХ) | B29: 11608010000000000 | C29: 0 | D29: 0
A30: Штрафы (ХХ) | B30: 11625060000000000 | C30: 0 | D30: 0
A31: Штрафы (ХХ) | B31: 11628000000000000 | C31: 0 | D31: 0
A32: Штрафы (ХХ) | B32: 11630014000000000 | C32: 0 | D32: 0
A33: Штрафы (ХХ)* | B33: 11630030000000000 | C33: 0 | D33: 0
A34: Штрафы (ХХ) | B34: 11633050000000000 | C34: 0 | D34: 0
A35: Штрафы (ХХ) | B35: 11643000000000000 | C35: 0 | D35: 0
A36: Штрафы (ХХ) | B36: 11690050000000000 | C36: 0 | D36: 0
A37: Штрафы (ВСЕГО) | B37: 1 16 00 000 00 0000 000;ШТРАФЫ, САНКЦИИ, ВОЗМЕЩЕНИЕ УЩЕРБА | C37: 411190.86 | D37: 1079681.55
A38: Продажа земли1 | B38: 11406013000000000 | C38: 5820947.2 | D38: 1016149.87
A39: НДФЛ* | B39: 10102050000000000 | C39: 0 | D39: 0 | F39: Испр. с прод имущ. 26.02.2019
A40: Продажа имущества* | B40: 11402053000000000 | C40: 0 | D40: 0 | H40: =SUM(C26:C36) -> 0
A41: Неналоговые | B41: 11705050000000000 | C41: 0 | D41: 111193.1
A42: Неналоговые (Невы.) | B42: 11701050000000000 | C42: 0 | D42: -63883.38
A43: Прибыль МУП | B43: 11107015000000000 | C43: 0 | D43: 0
A44: УСН (1011) | B44: 10501011000000000 | C44: 8000591.07 | D44: 3783583.04 | F44: используется с 2016
A45: Патент | B45: 10504020000000000 | C45: 7889298.58 | D45: 5639267.33
A46: Продажа земли2* | B46: 11406025000000000 | C46: 0 | D46: 2937422.67 | F46: добавил 09.06.2014
A47: Пошлина(702) | B47: 10807020000000000 | C47: 0 | D47: 0 | F47: добавил 27.01.2015
A48: Пошлина(710) | B48: 10807100000000000 | C48: 0 | D48: 0 | F48: добавил 23.01.2015
A49: Аренда имущ.2 | B49: 11105075000000000 | C49: 26205 | D49: 27242 | F49: добавил 18.03.2015
A50: Прочие (имущество) | B50: 11109045000000000 | C50: 289581.41 | D50: 0 | F50: добавил 05.05.2015
A51: Пошлина(600) | B51: 10806000000000000 | C51: 0 | D51: 0 | F51: добавил 31.01.2017
A52: Проценты(крд) | B52: 11103050000000000 | C52: 15.07 | D52: 7.9 | F52: добавил 31.01.2017
A53: УСН (1021) | B53: 10501021000000000 | C53: 1502123.7 | D53: 202289.72
A54: Пошлина(701) | B54: 10807010000000000 | C54: 0 | D54: 0
A55: Пошлина(714) | B55: 10807141000000000 | C55: 0 | D55: 0
A56: Экология* | B56: 11201070000000000 | C56: 0 | D56: 0 | F56: добавил 02.04.2018
A57: Экология* | B57: 11201042000000000 | C57: -0.01 | D57: 0 | F57: добавил 03.04.2018
A58: Экология* | B58: 11201041000000000 | C58: 0 | D58: 4145.95 | F58: добавил 04.04.2018
B60: 1 05 01 000 00 0000 000;Налог, взимаемый в связи с применением упрощенной системы налогообложения
D62: ЗА завтра
C63: =C56+C23+C22+C21+C20+C19 -> 339646.54 | D63: 450315137.7
